bitfinex/quotes_ETHUSD_20230117
["timestamp","ask_amount","ask_price","bid_price","bid_amount"]
[1673937089987,0.12325545,1566.1,1566.0,22.45893136]
[1673937091058,0.12325545,1566.1,1566.0,22.89610669]
[1673937091806,0.0651611,1566.1,1566.0,22.52493136]
[1673937092700,0.0651611,1566.1,1566.0,22.96211808]
[1673937093166,0.0651611,1566.1,1566.0,22.52493136]
[1673937096444,0.0651611,1566.1,1566.0,22.96221561]
[1673937101690,0.0651611,1566.1,1566.0,23.91920555]
[1673937101857,0.0651611,1566.1,1566.0,22.96221561]
[1673937103580,0.06198161,1566.1,1566.0,22.96221561]
[1673937106426,0.06198161,1566.1,1566.0,23.91920555]
[1673937112301,0.06198161,1566.1,1566.0,24.34350044]
[1673937112517,0.06198161,1566.1,1566.0,25.77265]
[1673937113758,0.06198161,1566.1,1566.0,24.81566006]
[1673937115774,0.06198161,1566.1,1566.0,26.72422737]
[1673937116090,0.04850648,1566.4,1566.3,0.84104037]
[1673937116242,0.04850648,1566.4,1566.3,7.40107412]
[1673937116449,0.04850648,1566.4,1566.3,36.58731712]
[1673937116692,0.04850648,1566.4,1566.3,40.25460137]
[1673937116905,0.04850648,1566.4,1566.3,48.52640137]
[1673937117346,0.04850648,1566.4,1566.3,47.52640137]
[1673937117507,0.04850648,1566.4,1566.3,47.04763231]
[1673937117718,0.04850648,1566.4,1566.3,48.9597406]
[1673937117966,0.04850648,1566.4,1566.3,47.04847957]
[1673937118504,0.04850648,1566.4,1566.3,43.39096569]
[1673937118672,0.04850648,1566.4,1566.3,48.9597406]
[1673937119238,0.04850648,1566.4,1566.3,50.1867406]
[1673937119414,0.04850648,1566.4,1566.3,44.61796569]
[1673937119839,0.04850648,1566.4,1566.3,48.34147957]
[1673937125384,0.04850648,1566.4,1566.3,49.29609202]
[1673937126591,0.04850648,1566.4,1566.3,47.86275279]
[1673937126754,0.04850648,1566.4,1566.3,22.32487279]
[1673937126961,0.04850648,1566.4,1566.3,47.42546854]
[1673937127209,0.04850648,1566.4,1566.3,49.29609202]
[1673937127427,0.04850648,1566.4,1566.3,50.25046013]
[1673937128588,0.04850648,1566.4,1566.3,48.8171209]
[1673937128976,0.04850648,1566.4,1566.3,50.25046013]
[1673937129187,0.04850648,1566.4,1566.3,48.8171209]
[1673937129391,0.04850648,1566.4,1566.3,50.0401209]
[1673937131393,0.04850648,1566.4,1566.3,48.8131209]
[1673937131875,0.02747094,1566.4,1566.3,50.24465824]
[1673937132328,0.02747094,1566.4,1566.3,51.1988213]
[1673937133183,0.02747094,1566.4,1566.3,50.24465824]
[1673937135170,0.02747094,1566.4,1566.3,56.96565824]
[1673937135383,0.06969516,1566.5,1566.4,1.0]
[1673937135720,0.06969516,1566.5,1566.4,30.0626948]
[1673937135892,0.06969516,1566.5,1566.4,30.48698969]
[1673937137436,0.06969516,1566.5,1566.4,32.92998969]
[1673937138575,0.06969516,1566.5,1566.4,28.27247581]
[1673937138781,0.06969516,1566.5,1566.4,29.22647023]
[1673937139029,0.06969516,1566.5,1566.4,29.22647151]
[1673937139205,0.06969516,1566.5,1566.4,27.99947151]
[1673937139912,0.06969516,1566.5,1566.4,28.06547151]
[1673937142534,0.06969516,1566.5,1566.4,20.76625333]
[1673937147632,0.06969516,1566.5,1566.4,21.72024903]
[1673937151885,0.87769516,1566.5,1566.4,20.34195844]
[1673937152043,0.87769516,1566.5,1566.4,19.90467419]
[1673937152785,0.06969516,1566.5,1566.4,19.90467419]
[1673937155613,0.06969516,1566.5,1566.4,20.85866989]
[1673937158695,0.06694165,1566.5,1566.4,20.85866989]
[1673937159239,0.06694165,1566.5,1566.4,19.90467419]
[1673937161440,0.06694165,1566.5,1566.4,23.10473176]
[1673937161754,0.06694165,1566.5,1566.4,23.54201601]
[1673937163181,0.06694165,1566.5,1566.4,20.34195844]
[1673937163392,0.06694165,1566.5,1566.4,19.90467419]
[1673937177239,0.06694165,1566.5,1566.4,20.85866989]
[1673937177715,0.06694165,1566.5,1566.4,21.29595414]
[1673937181126,0.06694165,1566.5,1566.4,22.72749148]
[1673937182391,0.06694165,1566.5,1566.4,26.75712215]
[1673937183068,0.06361585,1566.5,1566.4,27.71438748]
[1673937183279,0.06361585,1566.5,1566.4,27.94438748]
[1673937184784,0.06361585,1566.5,1566.4,26.03312645]
[1673937185014,0.06361585,1566.5,1566.4,27.94438748]
[1673937185189,0.06361585,1566.5,1566.4,26.03312645]
[1673937188813,0.06361585,1566.5,1566.4,26.51285014]
[1673937189383,0.06361585,1566.5,1566.4,27.94758497]
[1673937190634,0.06361585,1566.5,1566.4,26.03632394]
[1673937196131,0.06361585,1566.5,1566.4,27.94758497]
[1673937196357,0.06361585,1566.5,1566.4,26.03632394]
[1673937196966,0.06361585,1566.5,1566.4,26.51285014]
[1673937199647,0.06361585,1566.5,1566.4,27.73985014]
[1673937201269,0.06361585,1566.5,1566.4,28.96585014]
[1673937201488,0.06361585,1566.5,1566.4,35.43534278]
[1673937201830,0.03605716,1566.5,1566.4,35.43534278]
[1673937202251,7.16e-06,1566.5,1566.4,31.13500547]
[1673937202462,0.04633744,1566.7,1566.4,33.52391855]
[1673937202672,0.04633744,1566.7,1566.6,7.73254412]
[1673937202882,0.04382941,1566.7,1566.6,36.49554412]
[1673937203063,0.04382941,1566.7,1566.6,36.93282837]
[1673937203269,0.04382941,1566.7,1566.6,35.93282837]
[1673937203635,0.04382941,1566.7,1566.6,34.97726035]
[1673937203857,0.04382941,1566.7,1566.6,38.97210772]
[1673937204209,0.04382941,1566.7,1566.6,39.92742946]
[1673937204465,0.04382941,1566.7,1566.6,40.19110772]
[1673937205424,0.15297487,1566.8,1566.6,43.8486216]
[1673937205597,0.15297487,1566.8,1566.7,8.9552018]
[1673937205810,0.15297487,1566.8,1566.7,24.81574235]
[1673937206789,4.87e-06,1566.8,1566.7,24.81574235]
[1673937207996,4.87e-06,1566.8,1566.7,23.86044887]
[1673937208349,4.87e-06,1566.8,1566.7,22.41444887]
[1673937211765,4.87e-06,1566.8,1566.7,22.64444887]
[1673937212255,4.87e-06,1566.8,1566.7,23.59974235]
[1673937212704,4.87e-06,1566.8,1566.7,22.64444887]
[1673937213429,4.87e-06,1566.8,1566.7,23.59974235]
[1673937213620,4.87e-06,1566.8,1566.7,24.82674235]
[1673937214445,4.87e-06,1566.8,1566.7,25.24964483]
[1673937217024,4.87e-06,1566.8,1566.7,26.68299686]
[1673937217213,4.87e-06,1566.8,1566.7,27.63883943]
[1673937217425,4.87e-06,1566.8,1566.7,34.35983943]
[1673937217611,4.87e-06,1566.8,1566.7,36.10621726]
[1673937217951,4.87e-06,1566.8,1566.7,32.44870338]
[1673937218332,0.06,1566.8,1566.7,32.51470338]
[1673937220490,0.06,1566.8,1566.7,25.08514909]
[1673937220693,0.06,1566.8,1566.7,20.34038606]
[1673937221851,0.06,1566.8,1566.7,20.57038606]
[1673937224066,0.06,1566.8,1566.7,20.13310181]
[1673937224221,0.06,1566.8,1566.7,20.57038606]
[1673937227708,0.06,1566.8,1566.7,20.13310181]
[1673937227920,0.06,1566.8,1566.7,26.25866823]
[1673937228181,0.06,1566.8,1566.7,27.48166823]
[1673937229989,0.06,1566.8,1566.7,26.52687049]
[1673937230904,0.05624077,1566.8,1566.7,26.52687049]
[1673937232229,0.05624077,1566.8,1566.7,28.43800654]
[1673937234222,0.05624077,1566.8,1566.7,27.00465451]
[1673937236073,0.07153975,1566.9,1566.8,0.02431968]
[1673937236386,0.07153975,1566.9,1566.8,21.49883547]
[1673937236598,0.07153975,1566.9,1566.8,25.3590222]
[1673937237844,0.07153975,1566.9,1566.8,24.1320222]
[1673937238746,0.07153975,1566.9,1566.8,26.04315825]
[1673937240488,0.07153975,1566.9,1566.8,26.04413036]
[1673937242248,0.07153975,1566.9,1566.8,24.61002395]
[1673937247219,9.75e-06,1566.9,1566.8,24.61002395]
[1673937247374,0.07291317,1567.0,1566.8,24.61002395]
[1673937247586,0.07291317,1567.0,1566.9,10.48876251]
[1673937247802,3.17e-06,1567.0,1566.9,23.48280251]
[1673937248025,8.72401292,1567.1,1566.9,24.34298924]
[1673937248236,8.72401292,1567.1,1567.0,5.73587354]
[1673937248535,8.72401292,1567.1,1567.0,23.42492165]
[1673937248771,0.08251292,1567.1,1567.0,24.28510838]
[1673937249821,0.08251292,1567.1,1567.0,22.8515587]
[1673937250178,0.08251292,1567.1,1567.0,22.42865622]
[1673937250503,0.12850805,1567.1,1567.0,22.9175587]
[1673937251978,0.12850805,1567.1,1567.0,19.8060508]
[1673937252188,0.12850805,1567.1,1567.0,19.38314832]
[1673937252382,0.12850805,1567.1,1567.0,18.94586407]
[1673937252764,0.12850805,1567.1,1567.0,19.38314832]
[1673937253024,0.12850805,1567.1,1567.0,18.94586407]
[1673937254713,0.12850805,1567.1,1567.0,19.90156386]
[1673937255494,0.12850805,1567.1,1567.0,18.94586407]
[1673937256093,0.12850805,1567.1,1567.0,19.90156386]
[1673937257657,0.12850805,1567.1,1567.0,18.94586407]
[1673937258256,0.12850805,1567.1,1567.0,19.90156386]
[1673937258711,0.12850805,1567.1,1567.0,18.94586407]
[1673937259888,0.12850805,1567.1,1567.0,19.90156386]
[1673937260390,0.12850805,1567.1,1567.0,18.94586407]
[1673937261221,0.12850805,1567.1,1567.0,19.90156386]
[1673937263617,0.12850805,1567.1,1567.0,19.38314832]
[1673937263828,0.12850805,1567.1,1567.0,18.94586407]
[1673937264809,1.25925906,1567.1,1567.0,9.44762]
[1673937264968,2.47825906,1567.1,1567.0,9.44762]
[1673937267139,2.47825906,1567.1,1566.8,0.02431968]
[1673937267140,1.0,1567.0,1566.8,0.02431968]
[1673937267274,2.443,1566.9,1566.8,0.02431968]
[1673937267653,4.63124374,1566.9,1566.8,0.02431968]
[1673937267798,6.21475765,1566.9,1566.5,9.17591828]
[1673937268008,2.18824374,1566.9,1566.5,9.17591828]
[1673937268214,2.18824374,1566.9,1566.5,8.77254947]
[1673937269293,2.18824374,1566.9,1566.6,3.0]
[1673937269523,1.227,1566.7,1566.6,3.0]
[1673937271193,1.227,1566.7,1566.6,9.38325]
[1673937273367,1.227,1566.7,1566.6,15.7665]
[1673937273802,21.44689423,1566.9,1566.6,18.88312407]
[1673937274027,21.44689423,1566.9,1566.6,19.83882386]
[1673937274638,20.21290487,1566.9,1566.7,3.11662407]
[1673937274851,20.21290487,1566.9,1566.8,12.76486]
[1673937274852,18.98590487,1566.9,1566.8,12.76486]
[1673937275069,0.06400487,1566.9,1566.8,12.76486]
[1673937275737,0.06400487,1566.9,1566.8,15.88148407]
[1673937276117,0.06400487,1566.9,1566.8,18.88148407]
[1673937276516,1.227,1567.0,1566.8,18.94748407]
[1673937278555,1.227,1567.0,1566.8,21.57606546]
[1673937279310,1.227,1567.0,1566.8,18.94748407]
[1673937283826,1.227,1567.0,1566.9,18.88066407]
[1673937285348,1.227,1567.0,1566.9,18.89666407]
[1673937285699,1.227,1567.0,1566.9,18.94666407]
[1673937289451,1.227,1567.0,1566.9,9.44802]
[1673937289665,1.45297624,1567.0,1566.9,9.44802]
[1673937293587,0.22597624,1567.0,1566.9,9.44802]
[1673937293983,1.44497624,1567.0,1566.9,0.066]
[1673937294190,1.44497624,1567.0,1566.9,0.062]
[1673937294445,3.98271518,1567.0,1566.9,0.062]
[1673937295479,2.39923062,1567.0,1566.9,0.062]
[1673937296088,3.98269502,1567.0,1566.9,0.062]
[1673937296746,5.20969502,1567.0,1566.9,0.062]
[1673937298657,7.63606227,1567.0,1566.9,0.062]
[1673937298965,13.52551691,1567.0,1566.9,0.062]
[1673937299196,36.07643174,1567.0,1566.9,0.062]
[1673937299390,38.14118367,1567.0,1566.9,0.062]
[1673937299751,38.13998373,1567.0,1566.9,0.062]
[1673937299957,36.23352593,1567.0,1566.9,0.0584522]
[1673937300219,0.03966313,1566.8,1566.4,12.76759]
[1673937300433,1.219,1566.7,1566.4,6.38377]
[1673937300653,1.56286181,1566.7,1566.4,6.38377]
[1673937301653,1.56286181,1566.7,1566.5,3.0]
[1673937302902,1.56286181,1566.7,1566.5,2.9965095]
[1673937303120,22.58231807,1566.8,1566.5,2.9965095]
[1673937303121,22.64432294,1566.8,1566.5,18.88042357]
[1673937303582,22.64432294,1566.8,1566.5,9.3801495]
[1673937304588,22.64432294,1566.8,1566.5,15.7637995]
[1673937307736,21.691368,1566.8,1566.5,15.7637995]
[1673937312042,21.691368,1566.8,1566.5,15.8177995]
[1673937312517,1.0,1566.7,1566.5,15.8177995]
[1673937312710,21.691368,1566.8,1566.5,15.8177995]
[1673937315935,11.423268,1566.8,1566.6,3.11662407]
[1673937316143,11.423268,1566.8,1566.7,9.38284]
[1673937316403,0.103668,1566.8,1566.7,18.88230407]
[1673937317934,0.06400487,1566.8,1566.7,18.88230407]
[1673937318146,0.06400487,1566.8,1566.7,21.43878692]
[1673937318877,9.63025494,1567.0,1566.7,21.50478692]
[1673937318878,9.69425981,1567.0,1566.7,21.50478692]
[1673937319959,1.01695981,1567.0,1566.8,3.11662407]
[1673937320129,1.01695981,1567.0,1566.9,12.76404]
[1673937320346,0.06400487,1567.0,1566.9,12.76404]
[1673937320629,0.06400487,1567.0,1566.9,15.88066407]
[1673937321655,0.06400487,1567.0,1566.9,18.09696521]
[1673937323706,0.06108106,1567.0,1566.9,18.09696521]
[1673937323918,0.06108106,1567.0,1566.9,21.09696521]
[1673937326475,0.01000487,1567.0,1566.9,21.14896521]
[1673937326683,0.07850805,1567.1,1566.9,21.16296521]
[1673937334488,0.07850805,1567.1,1566.9,18.94666407]
[1673937339363,1.03146299,1567.1,1566.9,3.066]
[1673937339570,0.07850805,1567.1,1566.9,3.066]
[1673937341708,0.07850805,1567.1,1566.9,3.0]
[1673937342007,1.21064541,1567.1,1566.9,3.0]
[1673937343200,2.16360035,1567.1,1566.9,3.0]
[1673937349029,1.03146299,1567.1,1566.9,3.0]
[1673937349293,0.07850805,1567.1,1566.9,15.76396]
[1673937349674,0.07850805,1567.1,1566.9,18.88058407]
[1673937350900,0.07850805,1567.1,1566.9,18.94658407]
[1673937354031,1.03146299,1567.1,1566.9,18.94658407]
[1673937354354,0.07850805,1567.1,1566.9,18.94658407]
[1673937355765,2.6147381,1567.1,1566.9,18.94658407]
[1673937355982,1.03146299,1567.1,1566.9,18.94658407]
[1673937358041,1.02862824,1567.1,1566.9,18.94658407]
[1673937360108,1.02862824,1567.1,1566.9,19.90228386]
[1673937363083,0.0756733,1567.1,1567.0,4.07232386]
[1673937363369,0.0756733,1567.1,1567.0,21.06256386]
[1673937363575,0.0756733,1567.1,1567.0,21.39113767]
[1673937364120,0.0756733,1567.1,1567.0,22.82468735]
[1673937364283,0.0756733,1567.1,1567.0,21.39113767]
[1673937364496,0.0756733,1567.1,1567.0,25.48265474]
[1673937364942,0.0756733,1567.1,1567.0,25.49465474]
[1673937365157,0.0756733,1567.1,1567.0,25.54865474]
[1673937369246,0.0756733,1567.1,1567.0,24.32165474]
[1673937370126,0.0756733,1567.1,1567.0,23.36595495]
[1673937373872,0.0756733,1567.1,1567.0,18.94586407]
[1673937384963,0.0756733,1567.1,1567.0,21.35856386]
[1673937385118,0.0756733,1567.1,1567.0,21.68740255]
[1673937386225,0.0756733,1567.1,1567.0,20.73170276]
[1673937386625,0.0756733,1567.1,1567.0,21.68740255]
[1673937386802,0.0756733,1567.1,1567.0,25.27589377]
[1673937388374,0.07337837,1567.1,1567.0,26.70944345]
[1673937389261,0.07337837,1567.1,1567.0,27.93144345]
[1673937389846,0.07337837,1567.1,1567.0,27.39817026]
[1673937390057,8.37e-06,1567.1,1567.0,27.39817026]
[1673937390266,0.10769715,1567.2,1567.0,27.39817026]
[1673937390527,0.10769715,1567.2,1567.1,12.2692746]
[1673937390687,0.10769715,1567.2,1567.1,24.0316946]
[1673937390898,0.10769715,1567.2,1567.1,24.78295989]
[1673937395261,0.10769715,1567.2,1567.1,26.21650957]
[1673937395685,0.10769715,1567.2,1567.1,24.78295989]
[1673937399447,0.10769715,1567.2,1567.1,24.84895989]
[1673937401825,0.10769715,1567.2,1567.1,26.28250957]
[1673937404505,0.10769715,1567.2,1567.1,25.32667607]
[1673937406447,0.10769715,1567.2,1567.1,26.28219798]
[1673937408420,0.10769715,1567.2,1567.1,25.32667607]
[1673937410597,0.10769715,1567.2,1567.1,27.23781212]
[1673937410807,0.10769715,1567.2,1567.1,25.32667607]
[1673937411069,0.10769715,1567.2,1567.1,28.46481212]
[1673937412309,0.10565,1567.2,1567.1,28.46481212]
[1673937413160,0.12554191,1567.3,1567.1,28.46481212]
[1673937413365,0.12554191,1567.3,1567.2,20.04679518]
[1673937413577,0.12554191,1567.3,1567.2,20.37563387]
[1673937413859,0.12554191,1567.3,1567.2,20.92363387]
[1673937414189,0.12554191,1567.3,1567.2,19.96846243]
[1673937414396,0.12554191,1567.3,1567.2,20.92363387]
[1673937415903,0.12554191,1567.3,1567.2,19.96846243]
[1673937416228,0.12554191,1567.3,1567.2,20.03446243]
[1673937417009,0.12554191,1567.3,1567.2,20.98963387]
[1673937417695,0.12554191,1567.3,1567.2,20.2282342]
[1673937417917,0.12554191,1567.3,1567.2,18.94422407]
[1673937422555,0.12554191,1567.3,1567.2,19.36560513]
[1673937422885,0.12554191,1567.3,1567.2,18.94422407]
[1673937423978,0.12554191,1567.3,1567.2,19.89939551]
[1673937425830,0.12554191,1567.3,1567.2,23.30893203]
[1673937426045,0.12554191,1567.3,1567.2,23.73031309]
[1673937427766,0.12554191,1567.3,1567.2,25.16386277]
[1673937429617,0.12554191,1567.3,1567.2,24.20869133]
[1673937430300,0.12554191,1567.3,1567.2,25.16502768]
[1673937431246,0.12554191,1567.3,1567.2,24.20869133]
[1673937431456,0.12554191,1567.3,1567.2,25.16502475]
[1673937431699,0.12554191,1567.3,1567.2,25.1650279]
[1673937431844,0.12554191,1567.3,1567.2,24.20869133]
[1673937432212,0.12554191,1567.3,1567.2,25.16502433]
[1673937432794,0.12554191,1567.3,1567.2,24.20869133]
[1673937433363,0.12554191,1567.3,1567.2,26.11982738]
[1673937433589,0.12554191,1567.3,1567.2,24.6862777]
[1673937434210,0.12554191,1567.3,1567.2,26.12072634]
[1673937434426,0.12337751,1567.3,1567.2,26.12072634]
[1673937434573,0.12337751,1567.3,1567.2,24.9162777]
[1673937434783,0.12337751,1567.3,1567.2,26.35053428]
[1673937434995,0.12337751,1567.3,1567.2,24.9162777]
[1673937436255,0.12337751,1567.3,1567.2,26.35032794]
[1673937437200,0.12337751,1567.3,1567.2,24.9162777]
[1673937437447,0.12337751,1567.3,1567.2,26.35032748]
[1673937437923,0.12337751,1567.3,1567.2,24.9162777]
[1673937438135,0.12337751,1567.3,1567.2,26.35036548]
[1673937440238,0.12337751,1567.3,1567.2,24.43922943]
[1673937441967,0.12337751,1567.3,1567.2,25.39533903]
[1673937442842,0.12337751,1567.3,1567.2,19.36560513]
[1673937443052,0.12337751,1567.3,1567.2,18.94422407]
[1673937443288,1.07633245,1567.3,1567.2,15.8276]
[1673937443441,2.65941173,1567.3,1567.2,9.4468]
[1673937443650,3.06829614,1567.3,1567.2,9.4468]
[1673937443898,3.06829614,1567.3,1567.2,6.4468]
[1673937444332,0.53226192,1567.3,1567.2,12.8276]
[1673937444522,1.48521686,1567.3,1567.2,6.4468]
[1673937444856,3.06830391,1567.3,1567.2,6.4468]
[1673937445232,0.53226192,1567.3,1567.2,15.8276]
[1673937445592,0.12337751,1567.3,1567.2,15.8276]
[1673937445959,0.12337751,1567.3,1567.2,3.066]
[1673937446173,1.35037751,1567.3,1567.2,3.066]
[1673937446936,2.30333245,1567.3,1567.2,3.066]
[1673937447324,3.88642621,1567.3,1567.2,3.066]
[1673937447808,3.88642621,1567.3,1567.2,3.0]
[1673937449172,1.35037751,1567.3,1567.2,3.0]
[1673937449486,2.11097148,1567.3,1567.2,3.0]
[1673937451142,3.06392642,1567.3,1567.2,3.0]
[1673937452191,2.11097148,1567.3,1567.2,3.0]
[1673937456433,2.11097148,1567.3,1567.2,9.3808]
[1673937456702,1.35037751,1567.3,1567.2,9.3808]
[1673937458750,1.35037751,1567.3,1567.2,9.4468]
[1673937459452,0.12337751,1567.3,1567.2,9.4468]
[1673937462025,0.12337751,1567.3,1567.2,15.8276]
[1673937469686,0.12337751,1567.3,1567.2,18.94422407]
[1673937469896,0.12337751,1567.3,1567.2,21.47672748]
[1673937475632,0.12337751,1567.3,1567.2,21.47395377]
[1673937481531,0.12337751,1567.3,1567.2,18.94145036]
[1673937482243,1.07633245,1567.3,1567.2,18.94145036]
[1673937482529,2.65938906,1567.3,1567.2,18.94145036]
[1673937482733,0.12337751,1567.3,1567.2,18.94145036]
[1673937483381,1.07633245,1567.3,1567.2,18.94145036]
[1673937484175,2.65938813,1567.3,1567.2,18.94145036]
[1673937484584,1.07633245,1567.3,1567.2,18.94145036]
[1673937485141,2.65937944,1567.3,1567.2,18.94145036]
[1673937495648,2.65937944,1567.3,1566.9,10.92873605]
[1673937495649,4.38132976,1567.3,1566.9,6.38172]
[1673937495986,4.38132976,1567.3,1566.7,2.39078906]
[1673937495987,1.43137991,1567.0,1566.7,0.95670128]
[1673937496138,0.95421163,1566.9,1566.7,13.72223128]
[1673937496505,0.95421163,1566.9,1566.7,15.88215407]
[1673937496506,0.23855915,1566.9,1566.7,15.88215407]
[1673937497440,0.95421163,1567.0,1566.7,15.88215407]
[1673937497441,1.219,1567.0,1566.7,16.83885535]
[1673937498031,1.219,1567.0,1566.7,16.90485535]
[1673937498358,1.219,1567.0,1566.7,15.94815407]
[1673937499106,1.219,1567.0,1566.7,16.90485535]
[1673937500313,1.219,1567.0,1566.7,15.94815407]
[1673937500628,1.53632116,1567.0,1566.7,15.94815407]
[1673937501470,1.219,1567.0,1566.7,15.94815407]
[1673937501684,1.219,1567.0,1566.7,16.90485535]
[1673937501991,1.223,1567.1,1566.8,3.11662407]
[1673937502147,1.223,1567.1,1566.9,12.76404]
[1673937503306,3.57068927,1567.1,1566.9,12.76404]
[1673937505304,3.57068927,1567.1,1566.9,12.77404]
[1673937505613,3.57068927,1567.1,1566.9,12.83004]
[1673937508259,1.223,1567.1,1566.9,12.83004]
[1673937509396,21.29968106,1567.2,1566.9,15.94666407]
[1673937516242,22.25389269,1567.2,1566.9,15.94666407]
[1673937518451,21.02689269,1567.2,1566.9,15.94666407]
[1673937525758,20.07268106,1567.2,1566.9,15.94666407]
[1673937525911,20.07268106,1567.2,1566.9,18.75626761]
[1673937527426,20.07268106,1567.2,1567.0,3.0]
[1673937527752,20.07268106,1567.2,1567.1,6.38121]
[1673937527969,0.06308106,1567.2,1567.1,6.38121]
[1673937531219,1.01729269,1567.2,1567.1,6.38121]
[1673937531381,2.60053821,1567.2,1567.1,6.38121]
[1673937534503,2.60053821,1567.2,1567.1,15.87904407]
[1673937535643,2.60053821,1567.2,1567.1,6.38121]
[1673937536030,2.53745715,1567.2,1567.1,6.44721]
[1673937538289,3.96883706,1567.2,1567.1,6.44721]
[1673937539075,3.96883706,1567.2,1567.1,0.066]
[1673937539311,4.79791728,1567.2,1567.1,0.066]
[1673937540229,4.79791728,1567.2,1567.0,15.82866]
[1673937540436,2.38559154,1567.2,1567.0,9.44728]
[1673937540767,2.53745265,1567.1,1567.0,9.44728]
[1673937541436,0.95421163,1567.1,1567.0,9.44728]
[1673937542657,2.53745265,1567.1,1567.0,9.44728]
[1673937543062,0.95421163,1567.1,1567.0,15.8289]
[1673937552743,5.85276972,1567.1,1567.0,0.066]
[1673937552951,7.43601074,1567.1,1567.0,0.066]
[1673937554326,5.52750419,1567.1,1567.0,0.066]
[1673937555227,7.43601074,1567.1,1567.0,0.066]
[1673937555634,5.52750419,1567.1,1567.0,0.066]
[1673937558904,7.43601074,1567.1,1567.0,0.06370578]
[1673937559413,5.59058525,1567.1,1566.8,12.82802578]
[1673937559618,0.95467493,1566.9,1566.8,12.82802578]
[1673937559878,2.53791595,1566.9,1566.8,15.82802578]
[1673937560066,0.95467493,1566.9,1566.8,15.82802578]
[1673937560281,2.94511336,1567.0,1566.8,15.82802578]
[1673937560632,1.51373345,1567.0,1566.8,15.82802578]
[1673937562091,1.51373345,1567.0,1566.8,0.06370578]
[1673937562092,2.00404827,1566.9,1566.8,0.06370578]
[1673937562246,4.81452973,1566.9,1566.8,0.06370578]
[1673937566399,2.27637334,1566.9,1566.8,0.06370578]
[1673937567201,2.27637334,1566.9,1566.8,0.014]
[1673937567407,2.27637334,1566.9,1566.6,6.44672578]
[1673937567605,1.221,1566.8,1566.6,6.44672578]
[1673937569196,2.27137334,1566.9,1566.6,6.44672578]
[1673937569655,0.22713733,1566.8,1566.6,6.44672578]
[1673937569819,0.22713733,1566.8,1566.6,0.06370578]
[1673937570024,1.227,1566.7,1566.6,0.06370578]
[1673937571186,2.227,1566.7,1566.6,0.06370578]
[1673937572056,1.227,1566.7,1566.6,0.06370578]
[1673937572261,1.83371922,1566.7,1566.6,0.06370578]
[1673937574076,1.83371922,1566.7,1566.4,3.07037221]
[1673937575418,1.83371922,1566.7,1566.4,15.83845221]
[1673937575419,0.60671922,1566.7,1566.4,15.83845221]
[1673937575757,1.51721839,1566.8,1566.4,15.83845221]
[1673937576325,1.51721839,1566.8,1566.4,9.45439221]
[1673937576326,2.51721839,1566.8,1566.4,9.45439221]
[1673937576558,2.51721839,1566.8,1566.4,3.07037221]
[1673937576899,2.47189332,1566.8,1566.4,3.07037221]
[1673937577605,8.85438332,1566.8,1566.4,3.07037221]
[1673937577824,0.88543833,1566.7,1566.4,3.07037221]
[1673937579476,0.88308182,1566.7,1566.4,3.07037221]
[1673937587713,1.88308182,1566.7,1566.4,3.07037221]
[1673937588051,8.26594182,1566.7,1566.4,3.07037221]
[1673937588265,9.48394182,1566.7,1566.4,0.07037221]
[1673937588414,0.94839418,1566.6,1566.4,0.07037221]
[1673937588624,1.94839418,1566.6,1566.4,0.07037221]
[1673937593672,0.94839418,1566.6,1566.4,0.07037221]
[1673937594501,1.94839418,1566.6,1566.4,0.07037221]
[1673937594825,0.94839418,1566.6,1566.4,0.07037221]
[1673937595000,0.09483942,1566.5,1566.4,0.07037221]
[1673937595755,0.99283942,1566.5,1566.4,0.07037221]
[1673937601130,1.99283942,1566.5,1566.4,0.07037221]
[1673937603023,0.99283942,1566.5,1566.4,0.07037221]
[1673937604519,0.98987172,1566.5,1566.4,0.07037221]
[1673937607241,0.09187172,1566.5,1566.4,0.07037221]
[1673937607666,0.98987172,1566.5,1566.4,0.07037221]
[1673937608520,0.09187172,1566.5,1566.4,0.07037221]
[1673937608677,1.90306911,1566.6,1566.4,0.07037221]
[1673937612563,0.95467493,1566.6,1566.4,6.45436221]
[1673937612881,2.4491359,1566.7,1566.4,19.91174756]
[1673937613134,1.01775599,1566.7,1566.4,19.91174756]
[1673937613822,0.95467493,1566.7,1566.4,21.40954112]
[1673937614302,0.95467493,1566.7,1566.5,2.14095411]
[1673937614519,0.95467493,1566.7,1566.5,8.52431411]
[1673937615308,0.95467493,1566.7,1566.5,9.48101539]
[1673937615745,2.38605484,1566.8,1566.5,9.48101539]
[1673937615961,3.96972428,1566.8,1566.5,9.48101539]
[1673937616153,3.96972428,1566.8,1566.6,0.94810154]
[1673937618157,0.95467493,1566.8,1566.6,0.94810154]
[1673937618348,2.53833219,1566.8,1566.6,0.94810154]
[1673937619165,3.9697121,1566.8,1566.6,0.94810154]
[1673937619671,0.95467493,1566.8,1566.6,0.94810154]
[1673937619815,2.53833516,1566.8,1566.6,0.94810154]
[1673937623336,2.53833516,1566.8,1566.5,14.97138989]
[1673937624183,3.96971507,1566.8,1566.5,8.58801989]
[1673937624383,3.96971507,1566.8,1566.5,6.44706578]
[1673937625756,2.38356924,1566.8,1566.5,6.44706578]
[1673937625969,2.53586971,1566.8,1566.5,6.44706578]
[1673937626116,3.96724962,1566.8,1566.5,6.44706578]
[1673937626484,22.92402121,1566.9,1566.5,13.78741706]
[1673937626662,20.93466097,1566.9,1566.6,14.14475171]
[1673937627504,19.50328106,1566.9,1566.6,14.14475171]
[1673937628467,9.10698106,1566.9,1566.6,17.26137578]
[1673937630010,9.10698106,1566.9,1566.6,10.87821578]
[1673937630954,9.10698106,1566.9,1566.6,10.94192156]
[1673937631159,9.10698106,1566.9,1566.7,1.09419216]
[1673937631160,0.06308106,1566.9,1566.7,1.09419216]
[1673937631447,0.05308106,1566.9,1566.8,6.38243]
[1673937631755,0.05308106,1566.9,1566.8,6.37921922]
[1673937631901,1.6366309,1566.9,1566.8,6.37921922]
[1673937632646,1.6366309,1566.9,1566.8,8.06483436]
[1673937632856,0.05308106,1566.9,1566.8,8.06483436]
[1673937636709,0.05308106,1566.9,1566.8,6.37921922]
[1673937637292,0.05308106,1566.9,1566.7,9.40468338]
[1673937638923,1.00619159,1566.9,1566.7,3.02194338]
[1673937639151,0.95311053,1566.9,1566.7,3.02194338]
[1673937639503,2.53670424,1566.9,1566.7,3.02194338]
[1673937640987,2.88129886,1566.9,1566.7,3.02194338]
[1673937641631,2.88129886,1566.9,1566.7,0.02194338]
[1673937643291,2.53678034,1566.8,1566.6,0.06370578]
[1673937643500,2.53678034,1566.8,1566.6,3.06370578]
[1673937645146,2.53678034,1566.8,1566.6,9.44689578]
[1673937645309,22.34749044,1566.9,1566.6,9.44689578]
[1673937645541,2.53676189,1566.8,1566.6,9.44689578]
[1673937649007,2.53676189,1566.8,1566.6,3.06370578]
[1673937649783,3.9681418,1566.8,1566.6,0.06370578]